[Event "56th Biel Festival MTO 2023"]
[White "Rosen,Eric"]
[Black "Foerster-Yialamas,Lucas"]
[Site "Biel"]
[Round "4.26"]
[Annotator "RC"]
[Result "1-0"]
[Date "2023.07.20"]
[WhiteElo "2344"]
[BlackElo "2157"]
[PlyCount "45"]
[TimeControl "60"]

1. Nf3 {[%emt 0:0:0]} d5 {[%emt 0:0:0]} 2. b3 {[%emt 0:0:0]} Nf6 {[%emt 0:0:0]} 3. Bb2 {[%emt 0:0:0]} Bf5 {[%emt 0:0:0]} 4. e3 {[%emt 0:0:0]} e6 {[%emt 0:0:0]} 5. Be2 {[%emt 0:0:0]} h6 {[%emt 0:0:0]} 6. c4 {[%emt 0:0:0]} c5 {[%emt 0:0:0]} 7. cxd5 {[%emt 0:0:0]} exd5 {[%emt 0:0:0]} 8. O-O {[%emt 0:0:0]} Nc6 {[%emt 0:0:0]} 9. d4 {[%emt 0:0:0]} Bd6 {[%emt 0:1:0]} 10. Nc3 {[%emt 0:3:22]} O-O {[%emt 0:5:16]} 11. Nb5 {[%emt 0:1:6]} cxd4 {[%emt 0:3:22]} 12. Nxd6 {[%emt 0:3:0]} Qxd6 {[%emt 0:0:6]} 13. Nxd4 {[%emt 0:0:7]} Nxd4 {[%emt 0:0:13]} 14. Qxd4 {[%emt 0:0:41]} a6 {[%emt 0:3:20]} 15. Bf3 {[%emt 0:0:57]} Rac8 {[%emt 0:1:22]} 16. e4 {[%emt 0:2:6]} Qe6 {[%emt 0:8:11]} 17. exf5 {[%emt 0:0:35]} Qxf5 {[%emt 0:0:2]} 18. Rac1 {[%emt 0:1:2]} Rfe8 {[%emt 0:0:42]} 19. h3 {[%emt 0:0:40]} Qg5 {[%emt 0:1:39]} 20. Rc5 {[%emt 0:2:37]} b6 {[%emt 0:3:8]} 21. Rxc8 {[%emt 0:0:48]} Rxc8 {[%emt 0:0:8]} 22. Qxb6 {[%emt 0:0:14]} Rc2 {[%emt 0:1:35]} 23. Bxf6 {[%emt 0:0:36]} 1-0

[Event "56th Biel Festival MTO 2023"]
[White "Coles,Robin"]
[Black "Aarav Dengla"]
[Site "Biel"]
[Round "4.27"]
[Annotator "ChessBase"]
[Result "0-1"]
[Date "2023.07.20"]
[WhiteElo "2070"]
[BlackElo "2343"]
[PlyCount "124"]
[TimeControl "60"]

1. e4 {[%emt 0:0:0]} c5 {[%emt 0:0:0]} 2. Nf3 {[%emt 0:0:0]} d6 {[%emt 0:0:0]} 3. Bb5+ {[%emt 0:0:0]} Nc6 {[%emt 0:0:0]} 4. O-O {[%emt 0:0:0]} Bd7 {[%emt 0:0:0]} 5. Re1 {[%emt 0:0:0]} Nf6 {[%emt 0:0:0]} 6. c3 {[%emt 0:0:0]} a6 {[%emt 0:0:0]} 7. Bf1 {[%emt 0:0:0]} Bg4 {[%emt 0:0:0]} 8. h3 {[%emt 0:0:0]} Bxf3 {[%emt 0:0:0]} 9. Qxf3 {[%emt 0:0:0]} e6 {[%emt 0:0:0]} 10. Na3 {[%emt 0:0:0]} Be7 {[%emt 0:0:0]} 11. Nc2 {[%emt 0:0:0]} Qb6 {[%emt 0:0:31]} 12. Rd1 {[%emt 0:0:0]} d5 {[%emt 0:2:8]} 13. exd5 {[%emt 0:2:3]} Nxd5 {[%emt 0:1:59]} 14. d4 {[%emt 0:6:45]} O-O {[%emt 0:0:30]} 15. dxc5 {[%emt 0:8:51]} Bxc5 {[%emt 0:1:12]} 16. a3 {[%emt 0:2:35]} Rfd8 {[%emt 0:5:57]} 17. b4 {[%emt 0:6:38]} Ne5 {[%emt 0:2:58]} 18. Qe2 {[%emt 0:8:11]} Bd6 {[%emt 0:12:33]} 19. Bb2 {[%emt 0:6:36]} Rac8 {[%emt 0:1:33]} 20. c4 {[%emt 0:8:42]} Nxc4 {[%emt 0:1:4]} 21. Bd4 {[%emt 0:7:12]} Qc7 {[%emt 0:0:56]} 22. Qe4 {[%emt 0:4:9]} Bh2+ {[%emt 0:11:17]} 23. Kh1 {[%emt 0:0:4]} Nd6 {[%emt 0:0:4]} 24. Qf3 {[%emt 0:9:40]} Nf5 {[%emt 0:2:53]} 25. Ra2 {[%emt 0:11:11]} Be5 {[%emt 0:0:50]} 26. Bxe5 {[%emt 0:1:18]} Qxe5 {[%emt 0:0:2]} 27. Re1 {[%emt 0:2:39]} Qf6 {[%emt 0:0:31]} 28. Ne3 {[%emt 0:4:37]} Qc3 {[%emt 0:6:4]} 29. Raa1 {[%emt 0:1:46]} Nfxe3 {[%emt 0:2:15]} 30. fxe3 {[%emt 0:0:36]} Qe5 {[%emt 0:0:2]} 31. e4 {[%emt 0:2:36]} Nf6 {[%emt 0:0:12]} 32. Rac1 {[%emt 0:3:23]} Rxc1 {[%emt 0:0:28]} 33. Rxc1 {[%emt 0:0:2]} Nxe4 {[%emt 0:5:29]} 34. Bd3 {[%emt 0:3:40]} Ng3+ {[%emt 0:0:3]} 35. Kg1 {[%emt 0:0:18]} g6 {[%emt 0:0:1]} 36. Kf2 {[%emt 0:1:23]} Kg7 {[%emt 0:6:35]} 37. Rc4 {[%emt 0:1:24]} Nh5 {[%emt 0:2:33]} 38. Kg1 {[%emt 0:1:6]} b5 {[%emt 0:0:32]} 39. Re4 {[%emt 0:0:44]} Qd5 {[%emt 0:0:21]} 40. Re3 {[%emt 0:1:15]} Qxf3 {[%emt 0:0:46]} 41. Rxf3 {[%emt 0:0:0]} Nf4 {[%emt 0:0:0]} 42. Bxb5 {[%emt 0:0:0]} Nxh3+ {[%emt 0:0:0]} 43. Rxh3 {[%emt 0:0:0]} axb5 {[%emt 0:0:0]} 44. Rc3 {[%emt 0:0:0]} Rd2 {[%emt 0:0:0]} 45. Rc5 {[%emt 0:0:0]} Rd3 {[%emt 0:0:0]} 46. Rxb5 {[%emt 0:0:0]} Rxa3 {[%emt 0:0:0]} 47. Rb7 {[%emt 0:0:0]} Ra2 {[%emt 0:0:0]} 48. b5 {[%emt 0:0:0]} Rb2 {[%emt 0:0:0]} 49. b6 {[%emt 0:0:0]} e5 {[%emt 0:0:0]} 50. Rb8 {[%emt 0:0:0]} f5 {[%emt 0:0:0]} 51. b7 {[%emt 0:0:0]} e4 {[%emt 0:0:0]} 52. Kf1 {[%emt 0:0:0]} e3 {[%emt 0:0:0]} 53. Re8 {[%emt 0:0:0]} Rxb7 {[%emt 0:0:0]} 54. Rxe3 {[%emt 0:0:0]} Kf6 {[%emt 0:0:0]} 55. Kf2 {[%emt 0:0:0]} h5 {[%emt 0:0:0]} 56. Ra3 {[%emt 0:0:0]} h4 {[%emt 0:0:0]} 57. Ra6+ {[%emt 0:0:0]} Kg5 {[%emt 0:0:0]} 58. Rc6 {[%emt 0:0:0]} Kh5 {[%emt 0:0:0]} 59. Kf3 {[%emt 0:0:0]} Rb3+ {[%emt 0:0:0]} 60. Kf2 {[%emt 0:0:0]} g5 {[%emt 0:0:0]} 61. Rc5 {[%emt 0:0:0]} Kg4 {[%emt 0:0:0]} 62. Rc4+ {[%emt 0:0:0]} f4 {[%emt 0:0:0]} 0-1

[Event "56th Biel Festival MTO 2023"]
[White "Nie,Xinyang"]
[Black "Malli,Suvirr"]
[Site "Biel"]
[Round "4.28"]
[Annotator "ChessBase"]
[Result "1-0"]
[Date "2023.07.20"]
[WhiteElo "2288"]
[BlackElo "2094"]
[PlyCount "132"]
[TimeControl "60"]

1. d4 {[%emt 0:0:0]} d5 {[%emt 0:0:0]} 2. c4 {[%emt 0:0:0]} c6 {[%emt 0:0:0]} 3. e3 {[%emt 0:0:0]} Nf6 {[%emt 0:0:0]} 4. Qc2 {[%emt 0:0:0]} e6 {[%emt 0:0:0]} 5. Nf3 {[%emt 0:0:0]} Nbd7 {[%emt 0:0:0]} 6. b3 {[%emt 0:0:0]} Bd6 {[%emt 0:0:0]} 7. Bb2 {[%emt 0:0:0]} O-O {[%emt 0:0:0]} 8. Bd3 {[%emt 0:0:0]} Qe7 {[%emt 0:0:0]} 9. Ne5 {[%emt 0:0:0]} h6 {[%emt 0:9:26]} 10. f4 {[%emt 0:0:0]} Bb4+ {[%emt 0:4:16]} 11. Nc3 {[%emt 0:0:0]} Nxe5 {[%emt 0:2:33]} 12. dxe5 {[%emt 0:0:0]} Nd7 {[%emt 0:2:14]} 13. a3 {[%emt 0:0:0]} Bc5 {[%emt 0:1:50]} 14. Qe2 {[%emt 0:0:0]} Bb6 {[%emt 0:3:25]} 15. O-O-O {[%emt 0:0:42]} a5 {[%emt 0:4:36]} 16. h4 {[%emt 0:1:10]} Bc5 {[%emt 0:1:53]} 17. Nb1 {[%emt 0:9:22]} dxc4 {[%emt 0:0:53]} 18. bxc4 {[%emt 0:0:35]} Rb8 {[%emt 0:8:54]} 19. g4 {[%emt 0:2:46]} b5 {[%emt 0:3:9]} 20. cxb5 {[%emt 0:0:5]} cxb5 {[%emt 0:2:4]} 21. g5 {[%emt 0:2:4]} Bb7 {[%emt 0:4:39]} 22. gxh6 {[%emt 0:0:37]} g6 {[%emt 0:1:11]} 23. h5 {[%emt 0:1:35]} Rbc8 {[%emt 0:1:16]} 24. Kd2 {[%emt 0:0:12]} Rfd8 {[%emt 0:3:55]} 25. hxg6 {[%emt 0:4:40]} fxg6 {[%emt 0:0:51]} 26. Rh3 {[%emt 0:3:31]} Nf8 {[%emt 0:8:56]} 27. Ke1 {[%emt 0:0:6]} b4 {[%emt 0:1:47]} 28. a4 {[%emt 0:1:14]} Kh7 {[%emt 0:6:17]} 29. Nd2 {[%emt 0:0:46]} Bc6 {[%emt 0:10:4]} 30. Ne4 {[%emt 0:0:39]} Bxe4 {[%emt 0:3:7]} 31. Bxe4 {[%emt 0:0:5]} Rxd1+ {[%emt 0:0:19]} 32. Qxd1 {[%emt 0:0:12]} Rd8 {[%emt 0:4:46]} 33. Qb3 {[%emt 0:0:15]} Qd7 {[%emt 0:1:55]} 34. Bc1 {[%emt 0:0:4]} Qc7 {[%emt 0:2:10]} 35. Bd2 {[%emt 0:1:5]} Qd7 {[%emt 0:0:47]} 36. Rh2 {[%emt 0:0:7]} Ba7 {[%emt 0:4:15]} 37. Bc1 {[%emt 0:1:18]} Rc8 {[%emt 0:1:31]} 38. Bd2 {[%emt 0:2:16]} Bb6 {[%emt 0:3:5]} 39. Ke2 {[%emt 0:0:20]} Ba7 {[%emt 0:1:30]} 40. Kf3 {[%emt 0:0:6]} Bb8 {[%emt 0:1:38]} 41. Qa2 {[%emt 0:36:26]} Qf7 {[%emt 0:0:0]} 42. Ke2 {[%emt 0:0:0]} Qd7 {[%emt 0:0:0]} 43. Rh1 {[%emt 0:0:0]} Ba7 {[%emt 0:0:0]} 44. Qb3 {[%emt 0:0:0]} Rd8 {[%emt 0:0:0]} 45. Qd3 {[%emt 0:0:0]} Qc7 {[%emt 0:6:9]} 46. Qc2 {[%emt 0:0:0]} Qd7 {[%emt 0:3:36]} 47. Rg1 {[%emt 0:0:0]} b3 {[%emt 0:3:44]} 48. Qd3 {[%emt 0:0:0]} Qe7 {[%emt 0:5:36]} 49. Qxb3 {[%emt 0:0:0]} Qh4 {[%emt 0:1:1]} 50. Bxa5 {[%emt 0:0:0]} Rd7 {[%emt 0:1:35]} 51. Bb4 {[%emt 0:0:0]} Qh2+ {[%emt 0:4:37]} 52. Rg2 {[%emt 0:0:0]} Qh5+ {[%emt 0:0:9]} 53. Bf3 {[%emt 0:0:0]} Qf5 {[%emt 0:0:7]} 54. Bd6 {[%emt 0:0:0]} Rd8 {[%emt 0:1:15]} 55. Qb7+ {[%emt 0:0:0]} Rd7 {[%emt 0:0:14]} 56. Qe4 {[%emt 0:0:0]} Rf7 {[%emt 0:0:52]} 57. Qxf5 {[%emt 0:0:0]} Rxf5 {[%emt 0:0:19]} 58. Be4 {[%emt 0:0:0]} Rf7 {[%emt 0:0:7]} 59. Bxf8 {[%emt 0:0:0]} Rxf8 {[%emt 0:0:6]} 60. Rxg6 {[%emt 0:0:0]} Kh8 {[%emt 0:0:6]} 61. Rxe6 {[%emt 0:0:0]} Rb8 {[%emt 0:0:16]} 62. Kf3 {[%emt 0:0:0]} Bc5 {[%emt 0:0:18]} 63. a5 {[%emt 0:0:0]} Kg8 {[%emt 0:0:17]} 64. h7+ {[%emt 0:0:0]} Kg7 {[%emt 0:0:10]} 65. a6 {[%emt 0:0:0]} Rb3 {[%emt 0:0:11]} 66. Rg6+ {[%emt 0:0:0]} Kh8 {[%emt 0:0:17]} 1-0

[Event "56th Biel Festival MTO 2023"]
[White "Karthik Rajaa"]
[Black "Monteverde,Jonathan"]
[Site "Biel"]
[Round "4.29"]
[Annotator "RC"]
[Result "1/2-1/2"]
[Date "2023.07.20"]
[WhiteElo "2276"]
[BlackElo "2074"]
[PlyCount "64"]
[TimeControl "60"]

1. Nf3 {[%emt 0:0:0]} d5 {[%emt 0:0:0]} 2. d4 {[%emt 0:0:0]} Bf5 {[%emt 0:0:0]} 3. c4 {[%emt 0:0:0]} e6 {[%emt 0:0:0]} 4. Nc3 {[%emt 0:0:0]} Nc6 {[%emt 0:0:0]} 5. Bf4 {[%emt 0:0:0]} Nf6 {[%emt 0:0:0]} 6. e3 {[%emt 0:0:0]} Bb4 {[%emt 0:0:0]} 7. Rc1 {[%emt 0:0:0]} O-O {[%emt 0:0:0]} 8. a3 {[%emt 0:4:59]} Bxc3+ {[%emt 0:0:0]} 9. Rxc3 {[%emt 0:0:9]} Ne7 {[%emt 0:0:0]} 10. Rc1 {[%emt 0:18:50]} Ne4 {[%emt 0:0:0]} 11. Nd2 {[%emt 0:7:27]} c5 {[%emt 0:26:46]} 12. Nxe4 {[%emt 0:1:36]} Bxe4 {[%emt 0:3:31]} 13. f3 {[%emt 0:0:38]} Bg6 {[%emt 0:0:22]} 14. dxc5 {[%emt 0:2:13]} Qa5+ {[%emt 0:3:38]} 15. Qd2 {[%emt 0:2:25]} Qxc5 {[%emt 0:2:54]} 16. b4 {[%emt 0:3:17]} Qc6 {[%emt 0:3:35]} 17. c5 {[%emt 0:6:36]} Qa4 {[%emt 0:6:22]} 18. h4 {[%emt 0:9:4]} h5 {[%emt 0:2:15]} 19. Be2 {[%emt 0:9:16]} Qxa3 {[%emt 0:12:7]} 20. Kf2 {[%emt 0:2:11]} a5 {[%emt 0:0:27]} 21. Bd6 {[%emt 0:3:8]} Rfe8 {[%emt 0:0:7]} 22. Bxe7 {[%emt 0:20:12]} Rxe7 {[%emt 0:0:5]} 23. Ra1 {[%emt 0:0:4]} Qb3 {[%emt 0:0:13]} 24. Rhc1 {[%emt 0:1:48]} Ree8 {[%emt 0:8:55]} 25. bxa5 {[%emt 0:0:7]} Rec8 {[%emt 0:0:58]} 26. f4 {[%emt 0:3:47]} Rc6 {[%emt 0:3:17]} 27. Qd4 {[%emt 0:0:49]} f6 {[%emt 0:5:55]} 28. Bd1 {[%emt 0:1:12]} Qd3 {[%emt 0:0:39]} 29. Qb4 {[%emt 0:1:28]} Qa6 {[%emt 0:3:39]} 30. Ba4 {[%emt 0:1:13]} Rc7 {[%emt 0:1:21]} 31. Kg3 {[%emt 0:0:0]} Bf7 {[%emt 0:0:0]} 32. Kf2 {[%emt 0:0:0]} Kf8 {[%emt 0:10:3]} 1/2-1/2

[Event "56th Biel Festival MTO 2023"]
[White "Prieb,Robert"]
[Black "Rohith Krishna S"]
[Site "Biel"]
[Round "4.30"]
[Annotator "ChessBase"]
[Result "0-1"]
[Date "2023.07.20"]
[WhiteElo "2060"]
[BlackElo "2429"]
[PlyCount "100"]
[TimeControl "60"]

1. d4 {[%emt 0:0:0]} Nf6 {[%emt 0:0:0]} 2. c4 {[%emt 0:0:0]} e6 {[%emt 0:0:0]} 3. Nf3 {[%emt 0:0:0]} b6 {[%emt 0:0:0]} 4. a3 {[%emt 0:0:0]} Ba6 {[%emt 0:0:0]} 5. Qc2 {[%emt 0:0:0]} Bb7 {[%emt 0:0:0]} 6. Nc3 {[%emt 0:0:0]} c5 {[%emt 0:0:0]} 7. e4 {[%emt 0:0:3]} cxd4 {[%emt 0:0:0]} 8. Nxd4 {[%emt 0:0:10]} Bc5 {[%emt 0:0:0]} 9. Nb3 {[%emt 0:3:39]} Nc6 {[%emt 0:0:0]} 10. Nxc5 {[%emt 0:7:19]} bxc5 {[%emt 0:0:0]} 11. Be3 {[%emt 0:2:56]} Nd4 {[%emt 0:3:54]} 12. Bxd4 {[%emt 0:4:29]} cxd4 {[%emt 0:0:17]} 13. Nb5 {[%emt 0:0:30]} Qb8 {[%emt 0:3:49]} 14. f3 {[%emt 0:6:25]} e5 {[%emt 0:0:11]} 15. c5 {[%emt 0:3:22]} O-O {[%emt 0:0:9]} 16. Nd6 {[%emt 0:1:36]} Ne8 {[%emt 0:2:22]} 17. Nxb7 {[%emt 0:18:35]} Qxb7 {[%emt 0:0:7]} 18. Bc4 {[%emt 0:0:39]} Rc8 {[%emt 0:4:17]} 19. b4 {[%emt 0:4:39]} d6 {[%emt 0:7:56]} 20. Bd5 {[%emt 0:2:28]} Qb5 {[%emt 0:1:4]} 21. c6 {[%emt 0:4:17]} Nf6 {[%emt 0:1:27]} 22. Qb3 {[%emt 0:4:33]} Nxd5 {[%emt 0:18:4]} 23. exd5 {[%emt 0:0:14]} a5 {[%emt 0:1:28]} 24. a4 {[%emt 0:7:5]} Qb6 {[%emt 0:0:24]} 25. b5 {[%emt 0:2:34]} f5 {[%emt 0:0:56]} 26. O-O {[%emt 0:2:40]} e4 {[%emt 0:0:25]} 27. fxe4 {[%emt 0:2:7]} fxe4 {[%emt 0:0:12]} 28. Qh3 {[%emt 0:1:48]} d3+ {[%emt 0:26:26]} 29. Kh1 {[%emt 0:0:15]} Rfe8 {[%emt 0:0:19]} 30. Qf5 {[%emt 0:9:31]} d2 {[%emt 0:2:20]} 31. Rf4 {[%emt 0:4:4]} e3 {[%emt 0:7:56]} 32. Re4 {[%emt 0:0:27]} Qc5 {[%emt 0:4:28]} 33. Rxe8+ {[%emt 0:1:43]} Rxe8 {[%emt 0:0:6]} 34. Rf1 {[%emt 0:0:18]} Qa7 {[%emt 0:0:4]} 35. Qh5 {[%emt 0:3:44]} g6 {[%emt 0:0:10]} 36. Qe2 {[%emt 0:0:28]} Qd4 {[%emt 0:1:37]} 37. Qf3 {[%emt 0:0:44]} Qe5 {[%emt 0:0:47]} 38. Qe2 {[%emt 0:3:2]} Qh5 {[%emt 0:5:13]} 39. Rf3 {[%emt 0:1:39]} Qxd5 {[%emt 0:0:14]} 40. Rf1 {[%emt 0:0:13]} Qh5 {[%emt 0:1:13]} 41. Rf3 {[%emt 0:30:57]} Qc5 {[%emt 0:30:18]} 42. Rf1 {[%emt 0:1:1]} Qc1 {[%emt 0:3:19]} 43. Kg1 {[%emt 0:0:0]} Rf8 {[%emt 0:0:0]} 44. Rd1 {[%emt 0:0:0]} d5 {[%emt 0:0:0]} 45. c7 {[%emt 0:0:0]} d4 {[%emt 0:0:0]} 46. b6 {[%emt 0:0:0]} d3 {[%emt 0:0:0]} 47. Qg4 {[%emt 0:0:0]} Qxd1+ {[%emt 0:0:0]} 48. Qxd1 {[%emt 0:0:0]} e2 {[%emt 0:0:0]} 49. Qb3+ {[%emt 0:0:0]} Kg7 {[%emt 0:0:0]} 50. Qc3+ {[%emt 0:0:0]} Rf6 {[%emt 0:0:0]} 0-1

[Event "56th Biel Festival MTO 2023"]
[White "Weishaeutel,Moritz"]
[Black "Misiano,Franco"]
[Site "Biel"]
[Round "4.31"]
[Annotator "RC"]
[Result "1-0"]
[Date "2023.07.20"]
[WhiteElo "2442"]
[BlackElo "2133"]
[PlyCount "79"]
[TimeControl "60"]

1. d4 {[%emt 0:0:0]} Nf6 {[%emt 0:0:0]} 2. c4 {[%emt 0:0:0]} g6 {[%emt 0:0:0]} 3. g3 {[%emt 0:0:0]} Bg7 {[%emt 0:0:0]} 4. Bg2 {[%emt 0:0:0]} O-O {[%emt 0:0:0]} 5. Nc3 {[%emt 0:0:0]} d6 {[%emt 0:0:0]} 6. Nf3 {[%emt 0:0:0]} Nc6 {[%emt 0:0:0]} 7. O-O {[%emt 0:0:0]} a6 {[%emt 0:0:0]} 8. b3 {[%emt 0:0:0]} Rb8 {[%emt 0:0:0]} 9. d5 {[%emt 0:0:0]} Na5 {[%emt 0:0:0]} 10. Bg5 {[%emt 0:0:0]} c5 {[%emt 0:0:0]} 11. dxc6 {[%emt 0:0:0]} Nxc6 {[%emt 0:0:0]} 12. Rc1 {[%emt 0:0:0]} h6 {[%emt 0:0:0]} 13. Bd2 {[%emt 0:0:0]} Bg4 {[%emt 0:0:0]} 14. h3 {[%emt 0:0:0]} Bd7 {[%emt 0:0:17]} 15. Nd5 {[%emt 0:0:8]} e6 {[%emt 0:1:28]} 16. Nxf6+ {[%emt 0:3:15]} Qxf6 {[%emt 0:0:0]} 17. Bc3 {[%emt 0:10:4]} Qe7 {[%emt 0:0:14]} 18. Bxg7 {[%emt 0:0:30]} Kxg7 {[%emt 0:0:30]} 19. Qd2 {[%emt 0:0:30]} Rfd8 {[%emt 0:0:30]} 20. Rfd1 {[%emt 0:0:30]} Be8 {[%emt 0:0:30]} 21. Qe3 {[%emt 0:0:30]} b5 {[%emt 0:3:48]} 22. cxb5 {[%emt 0:0:54]} Rxb5 {[%emt 0:1:0]} 23. Rxc6 {[%emt 0:1:20]} Bxc6 {[%emt 0:4:23]} 24. Qc3+ {[%emt 0:0:10]} Kg8 {[%emt 0:2:59]} 25. Qxc6 {[%emt 0:0:7]} Ra5 {[%emt 0:1:19]} 26. a4 {[%emt 0:1:5]} Rb8 {[%emt 0:0:5]} 27. Rxd6 {[%emt 0:7:25]} Rxb3 {[%emt 0:1:6]} 28. Nd4 {[%emt 0:1:1]} Rb1+ {[%emt 0:2:13]} 29. Kh2 {[%emt 0:0:6]} Re5 {[%emt 0:4:51]} 30. Qc8+ {[%emt 0:4:52]} Kg7 {[%emt 0:0:19]} 31. Rd7 {[%emt 0:0:14]} Qf6 {[%emt 0:2:21]} 32. Qc7 {[%emt 0:0:17]} Rd5 {[%emt 0:1:12]} 33. Nxe6+ {[%emt 0:0:32]} Kg8 {[%emt 0:1:2]} 34. Rxd5 {[%emt 0:1:23]} Qxf2 {[%emt 0:0:45]} 35. Rd8+ {[%emt 0:1:13]} Kh7 {[%emt 0:0:12]} 36. Nf8+ {[%emt 0:0:4]} Kg8 {[%emt 0:2:20]} 37. Nxg6+ {[%emt 0:0:7]} Kh7 {[%emt 0:0:48]} 38. Nf8+ {[%emt 0:0:9]} Kg8 {[%emt 0:0:11]} 39. Ne6+ {[%emt 0:0:5]} Kh7 {[%emt 0:0:16]} 40. Qc2+ {[%emt 0:0:5]} 1-0

[Event "56th Biel Festival MTO 2023"]
[White "Abdulrahman Mohammad,Al Taher"]
[Black "Adam,Rafael"]
[Site "Biel"]
[Round "4.32"]
[Annotator "ChessBase"]
[Result "1/2-1/2"]
[Date "2023.07.20"]
[WhiteElo "2258"]
[BlackElo "2117"]
[PlyCount "57"]
[TimeControl "60"]

1. d4 {[%emt 0:0:0]} Nf6 {[%emt 0:0:0]} 2. c4 {[%emt 0:0:0]} e6 {[%emt 0:0:0]} 3. Nc3 {[%emt 0:0:0]} Bb4 {[%emt 0:0:0]} 4. e3 {[%emt 0:0:0]} O-O {[%emt 0:0:0]} 5. Bd3 {[%emt 0:0:0]} d5 {[%emt 0:0:0]} 6. cxd5 {[%emt 0:0:0]} exd5 {[%emt 0:0:0]} 7. Nge2 {[%emt 0:0:0]} Re8 {[%emt 0:0:0]} 8. O-O {[%emt 0:0:0]} Bd6 {[%emt 0:0:0]} 9. Qc2 {[%emt 0:0:0]} Na6 {[%emt 0:0:0]} 10. a3 {[%emt 0:0:0]} c5 {[%emt 0:0:0]} 11. Bb5 {[%emt 0:4:2]} Bd7 {[%emt 0:0:0]} 12. Bxd7 {[%emt 0:2:37]} Qxd7 {[%emt 0:0:0]} 13. dxc5 {[%emt 0:1:55]} Nxc5 {[%emt 0:0:0]} 14. b4 {[%emt 0:9:3]} Ne6 {[%emt 0:0:0]} 15. Bb2 {[%emt 0:1:37]} a5 {[%emt 0:0:0]} 16. bxa5 {[%emt 0:3:27]} Rxa5 {[%emt 0:0:0]} 17. Ng3 {[%emt 0:2:40]} Qc6 {[%emt 0:16:4]} 18. Qd2 {[%emt 0:7:35]} Rc5 {[%emt 0:4:33]} 19. Rac1 {[%emt 0:9:36]} d4 {[%emt 0:19:30]} 20. Nce2 {[%emt 0:8:31]} dxe3 {[%emt 0:2:1]} 21. fxe3 {[%emt 0:6:11]} Qd5 {[%emt 0:18:41]} 22. Rcd1 {[%emt 0:9:23]} Qxd2 {[%emt 0:1:35]} 23. Rxd2 {[%emt 0:0:1]} Be5 {[%emt 0:3:32]} 24. Nf4 {[%emt 0:5:47]} Bxb2 {[%emt 0:3:46]} 25. Nxe6 {[%emt 0:4:2]} Rxe6 {[%emt 0:1:1]} 26. Rxb2 {[%emt 0:0:6]} Rc3 {[%emt 0:11:54]} 27. Rxb7 {[%emt 0:1:33]} Rxa3 {[%emt 0:5:57]} 28. e4 {[%emt 0:1:29]} Ra8 {[%emt 0:1:37]} 29. h3 {[%emt 0:0:53]} 1/2-1/2

[Event "56th Biel Festival MTO 2023"]
[White "Wang,Chuqiao"]
[Black "Gomez Barrera,Javiera Belen"]
[Site "Biel"]
[Round "4.33"]
[Annotator "ChessBase"]
[Result "1/2-1/2"]
[Date "2023.07.20"]
[WhiteElo "2161"]
[BlackElo "2256"]
[PlyCount "113"]
[TimeControl "60"]

1. d4 {[%emt 0:0:0]} d5 {[%emt 0:0:0]} 2. c4 {[%emt 0:0:0]} e6 {[%emt 0:0:0]} 3. Nc3 {[%emt 0:0:0]} Nf6 {[%emt 0:0:0]} 4. cxd5 {[%emt 0:0:0]} exd5 {[%emt 0:0:0]} 5. Bg5 {[%emt 0:0:0]} c6 {[%emt 0:0:0]} 6. e3 {[%emt 0:0:0]} h6 {[%emt 0:0:0]} 7. Bh4 {[%emt 0:0:0]} Be7 {[%emt 0:0:0]} 8. Qc2 {[%emt 0:0:0]} O-O {[%emt 0:0:0]} 9. Bd3 {[%emt 0:0:0]} Re8 {[%emt 0:0:0]} 10. Nf3 {[%emt 0:0:0]} Ne4 {[%emt 0:0:0]} 11. Bxe7 {[%emt 0:0:0]} Qxe7 {[%emt 0:0:0]} 12. O-O {[%emt 0:0:0]} Nd7 {[%emt 0:0:0]} 13. Nd2 {[%emt 0:0:0]} Ndf6 {[%emt 0:0:0]} 14. Rae1 {[%emt 0:0:0]} Bf5 {[%emt 0:17:38]} 15. f3 {[%emt 0:0:0]} Nxd2 {[%emt 0:0:54]} 16. Qxd2 {[%emt 0:0:0]} Bxd3 {[%emt 0:0:10]} 17. Qxd3 {[%emt 0:0:0]} b5 {[%emt 0:20:4]} 18. Re2 {[%emt 0:0:29]} Rad8 {[%emt 0:2:43]} 19. Rc1 {[%emt 0:2:30]} Qd7 {[%emt 0:14:53]} 20. Nb1 {[%emt 0:1:41]} Re6 {[%emt 0:7:42]} 21. Nd2 {[%emt 0:0:22]} Ne8 {[%emt 0:0:50]} 22. Nb3 {[%emt 0:0:25]} Rg6 {[%emt 0:0:22]} 23. Rec2 {[%emt 0:2:55]} h5 {[%emt 0:4:28]} 24. Nc5 {[%emt 0:2:47]} Qe7 {[%emt 0:0:23]} 25. Qe2 {[%emt 0:0:46]} Nd6 {[%emt 0:4:51]} 26. Nd3 {[%emt 0:7:30]} Nc4 {[%emt 0:0:47]} 27. Nf4 {[%emt 0:0:8]} Rf6 {[%emt 0:13:34]} 28. Nxh5 {[%emt 0:0:56]} Re6 {[%emt 0:0:1]} 29. b3 {[%emt 0:0:59]} Rxe3 {[%emt 0:1:57]} 30. Qf2 {[%emt 0:0:29]} Nd6 {[%emt 0:1:11]} 31. Ng3 {[%emt 0:1:29]} f5 {[%emt 0:6:14]} 32. Nf1 {[%emt 0:4:8]} Re6 {[%emt 0:0:40]} 33. Qd2 {[%emt 0:3:55]} Qh4 {[%emt 0:3:13]} 34. g3 {[%emt 0:6:2]} Qh5 {[%emt 0:0:24]} 35. Qd3 {[%emt 0:0:16]} Rde8 {[%emt 0:3:37]} 36. Rxc6 {[%emt 0:0:25]} f4 {[%emt 0:1:15]} 37. R6c2 {[%emt 0:2:1]} Nf7 {[%emt 0:0:33]} 38. gxf4 {[%emt 0:2:47]} Qh4 {[%emt 0:0:30]} 39. f5 {[%emt 0:2:56]} Qg5+ {[%emt 0:0:33]} 40. Rg2 {[%emt 0:1:13]} Qxc1 {[%emt 0:0:20]} 41. fxe6 {[%emt 0:30:2]} Rxe6 {[%emt 0:30:16]} 42. Re2 {[%emt 0:1:37]} Ng5 {[%emt 0:0:0]} 43. Rc2 {[%emt 0:0:0]} Nxf3+ {[%emt 0:0:0]} 44. Kh1 {[%emt 0:0:0]} Rg6 {[%emt 0:0:0]} 45. Rc8+ {[%emt 0:0:0]} Qxc8 {[%emt 0:0:0]} 46. Qxg6 {[%emt 0:0:0]} Nxd4 {[%emt 0:0:0]} 47. Qg5 {[%emt 0:0:0]} Qf5 {[%emt 0:0:0]} 48. Qxf5 {[%emt 0:0:0]} Nxf5 {[%emt 0:0:0]} 49. Kg1 {[%emt 0:0:0]} Kf7 {[%emt 0:0:0]} 50. Nd2 {[%emt 0:0:0]} Ke6 {[%emt 0:0:0]} 51. Nf3 {[%emt 0:0:0]} d4 {[%emt 0:0:0]} 52. Kf2 {[%emt 0:0:0]} Kd5 {[%emt 0:0:0]} 53. Ke2 {[%emt 0:0:0]} g6 {[%emt 0:0:0]} 54. Kd3 {[%emt 0:0:0]} a6 {[%emt 0:0:0]} 55. a3 {[%emt 0:0:0]} Ne3 {[%emt 0:2:1]} 56. Nxd4 {[%emt 0:0:0]} Ng4 {[%emt 0:0:52]} 57. Nf3 {[%emt 0:0:0]} 1/2-1/2

[Event "56th Biel Festival MTO 2023"]
[White "Joly,Julien"]
[Black "Matta,Vinay Kumar"]
[Site "Biel"]
[Round "4.34"]
[Annotator "ChessBase"]
[Result "1/2-1/2"]
[Date "2023.07.20"]
[WhiteElo "2249"]
[BlackElo "2111"]
[PlyCount "83"]
[TimeControl "60"]

1. d4 {[%emt 0:0:0]} Nf6 {[%emt 0:0:0]} 2. c4 {[%emt 0:0:0]} e6 {[%emt 0:0:0]} 3. Nf3 {[%emt 0:0:0]} d5 {[%emt 0:0:0]} 4. g3 {[%emt 0:0:0]} dxc4 {[%emt 0:0:0]} 5. Bg2 {[%emt 0:0:0]} c5 {[%emt 0:0:0]} 6. O-O {[%emt 0:0:0]} Nc6 {[%emt 0:0:0]} 7. Qa4 {[%emt 0:0:0]} Bd7 {[%emt 0:4:30]} 8. Qxc4 {[%emt 0:0:0]} b5 {[%emt 0:0:55]} 9. Qd3 {[%emt 0:0:0]} Qb6 {[%emt 0:15:21]} 10. dxc5 {[%emt 0:0:0]} Bxc5 {[%emt 0:0:22]} 11. Nc3 {[%emt 0:0:0]} Nb4 {[%emt 0:3:37]} 12. Qb1 {[%emt 0:0:52]} Bc6 {[%emt 0:5:34]} 13. a3 {[%emt 0:2:12]} Nbd5 {[%emt 0:1:10]} 14. Nxd5 {[%emt 0:0:6]} Bxd5 {[%emt 0:0:55]} 15. b4 {[%emt 0:0:4]} Be7 {[%emt 0:0:58]} 16. Be3 {[%emt 0:1:33]} Qb7 {[%emt 0:0:13]} 17. Bd4 {[%emt 0:4:31]} h6 {[%emt 0:2:59]} 18. Qb2 {[%emt 0:4:14]} O-O {[%emt 0:1:31]} 19. Rfc1 {[%emt 0:4:7]} a5 {[%emt 0:2:8]} 20. Ne1 {[%emt 0:8:15]} Bxg2 {[%emt 0:2:30]} 21. Nxg2 {[%emt 0:2:58]} axb4 {[%emt 0:0:14]} 22. axb4 {[%emt 0:0:6]} Rxa1 {[%emt 0:0:7]} 23. Rxa1 {[%emt 0:0:6]} Ra8 {[%emt 0:0:14]} 24. Rxa8+ {[%emt 0:10:49]} Qxa8 {[%emt 0:0:59]} 25. Nf4 {[%emt 0:0:30]} Qc6 {[%emt 0:23:31]} 26. f3 {[%emt 0:3:55]} Qc4 {[%emt 0:2:21]} 27. Nd3 {[%emt 0:2:39]} h5 {[%emt 0:1:44]} 28. Kf1 {[%emt 0:8:24]} h4 {[%emt 0:6:33]} 29. gxh4 {[%emt 0:4:33]} Nd5 {[%emt 0:0:44]} 30. h5 {[%emt 0:10:58]} f6 {[%emt 0:3:57]} 31. Bc5 {[%emt 0:13:45]} Bxc5 {[%emt 0:1:39]} 32. bxc5 {[%emt 0:0:35]} b4 {[%emt 0:3:13]} 33. Qc1 {[%emt 0:5:25]} Qh4 {[%emt 0:12:59]} 34. Kg2 {[%emt 0:9:19]} b3 {[%emt 0:1:33]} 35. e4 {[%emt 0:6:23]} Qxh5 {[%emt 0:2:32]} 36. c6 {[%emt 0:1:32]} Nc7 {[%emt 0:0:41]} 37. Qc4 {[%emt 0:0:34]} Qg5+ {[%emt 0:0:25]} 38. Kf1 {[%emt 0:0:29]} Qe3 {[%emt 0:0:55]} 39. Qxb3 {[%emt 0:0:27]} Qxf3+ {[%emt 0:0:14]} 40. Kg1 {[%emt 0:0:15]} Qe3+ {[%emt 0:1:3]} 41. Kf1 {[%emt 0:30:9]} Qf3+ {[%emt 0:31:59]} 42. Kg1 {[%emt 0:0:19]} 1/2-1/2